[Event "Rapid Shavuot-A 2023"]
[Site "Ramat Gan"]
[Date "2023.05.25"]
[Round "6.15"]
[White "Adar, Idan"]
[Black "Gamayev, Oleg"]
[Result "0-1"]
[ECO "D94"]
[WhiteElo "2085"]
[BlackElo "2174"]
[Annotator "NA RC"]
[PlyCount "68"]
[EventDate "2023.05.19"]
[EventType "swiss"]
[EventCountry "ISR"]
[SourceTitle "playchess.com"]
[Source "ChessBase"]
[SourceQuality "1"]
[TimeControl "900+5"]

1. d4 {[%emt 0:00:02]} d5 {[%emt 0:00:03]} 2. c4 {[%emt 0:00:02]} c6 {[%emt 0:00:02]} 3. Nc3 {[%emt 0:00:01]} Nf6 {[%emt 0:00:01]} 4. e3 {[%emt 0:00:02]} g6 {[%emt 0:00:02]} 5. Nf3 {[%emt 0:00:04]} Bg7 {[%emt 0:00:01]} 6. Ne5 {[%emt 0:00:01]} O-O {[%emt 0:00:03]} 7. Be2 {[%emt 0:00:04]} Nbd7 {[%emt 0:00:14]} 8. O-O {[%emt 0:00:09]} e6 {[%emt 0:00:17]} 9. f4 {[%emt 0:00:15]} Re8 {[%emt 0:00:39]} 10. b3 {[%emt 0:00:14]} Nxe5 {[%emt 0:00:09]} 11. fxe5 {[%emt 0:00:04]} Nd7 {[%emt 0:00:05]} 12. cxd5 {[%emt 0:02:00]} exd5 {[%emt 0:00:32]} 13. e4 {[%emt 0:00:15]} Nb6 {[%emt 0:00:10]} 14. exd5 {[%emt 0:00:57]} cxd5 {[%emt 0:00:17]} 15. a4 {[%emt 0:01:36]} Be6 {[%emt 0:00:41]} 16. Ba3 {[%emt 0:00:33]} a6 {[%emt 0:00:10]} 17. Bf3 {[%emt 0:01:03]} Rc8 {[%emt 0:00:13]} 18. Rc1 {[%emt 0:00:08]} Bh6 {[%emt 0:00:21]} 19. Rc2 {[%emt 0:01:26]} Bf5 {[%emt 0:00:06]} 20. a5 {[%emt 0:00:27]} Bxc2 {[%emt 0:00:09]} 21. Qxc2 {[%emt 0:00:02]} Be3+ {[%emt 0:00:02]} 22. Kh1 {[%emt 0:00:05]} Bxd4 {[%emt 0:00:01]} 23. axb6 {[%emt 0:00:16]} Bxc3 {[%emt 0:00:25]} 24. Bg4 {[%emt 0:01:23]} Rc6 {[%emt 0:00:33]} 25. Qf2 {[%emt 0:02:27]} f5 {[%emt 0:00:02]} 26. exf6 {[%emt 0:02:13]} Rxf6 {[%emt 0:00:06]} 27. Bf3 {[%emt 0:00:02]} Qxb6 {[%emt 0:00:43]} 28. Qxb6 {[%emt 0:00:37]} Rxb6 {[%emt 0:00:09]} 29. Bxd5+ {[%emt 0:00:01]} Kh8 {[%emt 0:00:14]} 30. h3 {[%emt 0:00:35]} h5 {[%emt 0:00:11]} 31. h4 {[%emt 0:00:23]} Re1 {[%emt 0:00:08]} 32. Rxe1 {[%emt 0:00:11]} Bxe1 {[%emt 0:00:01]} 33. Bb2+ {[%emt 0:00:03]} Kh7 {[%emt 0:00:05]} 34. Bc1 {[%emt 0:00:08]} Bxh4 {[%emt 0:00:07]} 0-1

[Event "Rapid Shavuot-A 2023"]
[Site "Ramat Gan"]
[Date "2023.05.25"]
[Round "6.16"]
[White "Azoulay, Yehonatan"]
[Black "Lebedinsky, Eduard"]
[Result "0-1"]
[ECO "C47"]
[WhiteElo "1813"]
[BlackElo "2122"]
[Annotator "NA RC"]
[PlyCount "136"]
[EventDate "2023.05.19"]
[EventType "swiss"]
[EventCountry "ISR"]
[SourceTitle "playchess.com"]
[Source "ChessBase"]
[SourceQuality "1"]
[TimeControl "900+5"]

1. e4 {[%emt 0:00:02]} e5 {[%emt 0:00:01]} 2. Nf3 {[%emt 0:00:03]} Nc6 {[%emt 0:00:01]} 3. Nc3 {[%emt 0:00:02]} Nf6 {[%emt 0:00:02]} 4. d4 {[%emt 0:00:02]} exd4 {[%emt 0:00:01]} 5. Nxd4 {[%emt 0:00:00]} Bb4 {[%emt 0:00:11]} 6. Nxc6 {[%emt 0:00:01]} bxc6 {[%emt 0:15:19]} 7. Bd3 d5 {[%emt 0:00:00]} 8. Bd2 {[%emt 0:00:03]} Bxc3 {[%emt 0:00:00]} 9. Bxc3 {[%emt 0:00:01]} dxe4 {[%emt 0:00:00]} 10. Bxf6 {[%emt 0:00:03]} Qxf6 {[%emt 0:00:00]} 11. Bxe4 {[%emt 0:00:02]} O-O {[%emt 0:00:00]} 12. O-O {[%emt 0:00:04]} Qxb2 {[%emt 0:00:00]} 13. Bxc6 {[%emt 0:00:01]} Rb8 {[%emt 0:00:00]} 14. Rb1 {[%emt 0:00:01]} Qxb1 {[%emt 0:00:00]} 15. Qxb1 {[%emt 0:00:00]} Rxb1 {[%emt 0:00:00]} 16. Rxb1 {[%emt 0:00:01]} Ba6 {[%emt 0:00:00]} 17. Rb3 {[%emt 0:00:23]} Rd8 {[%emt 0:00:00]} 18. h3 {[%emt 0:00:04]} Bc4 {[%emt 0:00:00]} 19. Rc3 {[%emt 0:00:19]} Bxa2 {[%emt 0:00:00]} 20. Ra3 {[%emt 0:00:01]} Bb1 {[%emt 0:00:00]} 21. Be4 {[%emt 0:00:16]} Rd1+ {[%emt 0:00:00]} 22. Kh2 {[%emt 0:00:02]} g6 {[%emt 0:00:00]} 23. Rxa7 {[%emt 0:00:01]} c5 {[%emt 0:00:00]} 24. Rc7 {[%emt 0:00:27]} Rd2 {[%emt 0:00:00]} 25. Rxc5 {[%emt 0:00:04]} Rxf2 {[%emt 0:01:35]} 26. Kg3 {[%emt 0:00:30]} Rd2 {[%emt 0:00:00]} 27. Bd3 {[%emt 0:00:02]} Ba2 {[%emt 0:00:00]} 28. Rc8+ {[%emt 0:00:15]} Kg7 {[%emt 0:00:00]} 29. Rc7 {[%emt 0:00:02]} Bd5 {[%emt 0:00:00]} 30. Bf1 {[%emt 0:00:14]} Rd1 {[%emt 0:00:00]} 31. Be2 {[%emt 0:00:08]} Rd2 {[%emt 0:00:00]} 32. Bf3 {[%emt 0:00:01]} Bxf3 33. Kxf3 {[%emt 0:00:02]} h5 {[%emt 0:00:00]} 34. c4 {[%emt 0:00:03]} Kf6 {[%emt 0:00:00]} 35. c5 {[%emt 0:00:08]} Rc2 {[%emt 0:00:00]} 36. c6 {[%emt 0:00:08]} Ke6 {[%emt 0:00:00]} 37. Rc8 {[%emt 0:01:17]} Rc3+ {[%emt 0:00:00]} 38. Kf4 {[%emt 0:00:13]} f6 {[%emt 0:00:00]} 39. Re8+ {[%emt 0:01:11]} Kd6 {[%emt 0:00:00]} 40. Rd8+ {[%emt 0:00:29]} Kc7 {[%emt 0:00:00]} 41. Rg8 {[%emt 0:00:10]} Rc4+ {[%emt 0:00:00]} 42. Kf3 {[%emt 0:00:44]} g5 {[%emt 0:00:00]} 43. Rg6 {[%emt 0:01:00]} Rf4+ {[%emt 0:00:00]} 44. Ke3 {[%emt 0:00:10]} h4 {[%emt 0:00:00]} 45. Rg8 {[%emt 0:00:20]} Kxc6 {[%emt 0:00:00]} 46. Rd8 {[%emt 0:00:01]} Kc7 {[%emt 0:00:00]} 47. Rd1 {[%emt 0:00:04]} Ra4 {[%emt 0:00:00]} 48. Kf3 {[%emt 0:00:05]} Kc6 {[%emt 0:00:00]} 49. Rd8 {[%emt 0:00:03]} Rf4+ {[%emt 0:00:00]} 50. Ke3 {[%emt 0:00:01]} Rf5 {[%emt 0:00:00]} 51. Ke4 {[%emt 0:00:20]} Rf2 {[%emt 0:00:00]} 52. Rd3 {[%emt 0:00:57]} f5+ {[%emt 0:00:00]} 53. Ke5 {[%emt 0:00:04]} f4 {[%emt 0:00:00]} 54. Rd6+ {[%emt 0:00:12]} Kc5 {[%emt 0:00:00]} 55. Rd5+ {[%emt 0:00:05]} Kc4 {[%emt 0:00:00]} 56. Rd1 {[%emt 0:00:21]} Rxg2 {[%emt 0:00:00]} 57. Kf5 {[%emt 0:00:03]} Kc3 {[%emt 0:00:00]} 58. Ke4 {[%emt 0:00:16]} Kc2 {[%emt 0:00:00]} 59. Rd8 {[%emt 0:00:07]} Rg3 {[%emt 0:00:00]} 60. Rd5 {[%emt 0:00:07]} Kc3 {[%emt 0:00:00]} 61. Rc5+ {[%emt 0:00:17]} Kd2 {[%emt 0:00:00]} 62. Ra5 {[%emt 0:00:05]} Ke2 {[%emt 0:00:00]} 63. Ra2+ {[%emt 0:00:05]} Kf1 {[%emt 0:00:00]} 64. Kf5 {[%emt 0:00:24]} f3 {[%emt 0:00:00]} 65. Ke4 {[%emt 0:00:04]} f2 {[%emt 0:00:00]} 66. Rb2 {[%emt 0:00:05]} Kg1 {[%emt 0:00:00]} 67. Rxf2 {[%emt 0:00:08]} Kxf2 {[%emt 0:00:00]} 68. Ke5 {[%emt 0:00:02]} Rxh3 {[%emt 0:00:00]} 0-1

[Event "Rapid Shavuot-A 2023"]
[Site "Ramat Gan"]
[Date "2023.05.25"]
[Round "6.17"]
[White "Orian, Noga"]
[Black "Michaeli, Omri"]
[Result "1-0"]
[ECO "E12"]
[WhiteElo "2131"]
[BlackElo "1874"]
[Annotator "NA RC"]
[PlyCount "67"]
[EventDate "2023.05.19"]
[EventType "swiss"]
[EventCountry "ISR"]
[SourceTitle "playchess.com"]
[Source "ChessBase"]
[SourceQuality "1"]
[TimeControl "900+5"]

1. d4 {[%emt 0:00:02]} Nf6 {[%emt 0:00:02]} 2. c4 {[%emt 0:00:02]} e6 {[%emt 0:00:01]} 3. Nf3 {[%emt 0:00:03]} b6 {[%emt 0:00:01]} 4. a3 {[%emt 0:00:03]} c5 {[%emt 0:00:41]} 5. d5 {[%emt 0:00:09]} Ba6 {[%emt 0:00:31]} 6. Qc2 {[%emt 0:00:06]} exd5 {[%emt 0:00:18]} 7. cxd5 {[%emt 0:00:03]} d6 {[%emt 0:00:13]} 8. Nc3 {[%emt 0:00:05]} g6 {[%emt 0:00:26]} 9. h4 {[%emt 0:01:07]} Bg7 {[%emt 0:00:37]} 10. Bf4 {[%emt 0:01:58]} Qe7 {[%emt 0:01:54]} 11. e4 {[%emt 0:00:33]} Bxf1 {[%emt 0:00:11]} 12. Kxf1 {[%emt 0:00:03]} Nbd7 {[%emt 0:00:51]} 13. Nb5 {[%emt 0:00:22]} Ne5 {[%emt 0:01:18]} 14. Nxd6+ Qxd6 {[%emt 0:00:01]} 15. Bxe5 {[%emt 0:00:59]} Qd7 {[%emt 0:00:30]} 16. Re1 {[%emt 0:01:40]} O-O {[%emt 0:00:20]} 17. Qc3 {[%emt 0:01:12]} Nh5 {[%emt 0:00:20]} 18. Bxg7 Nxg7 {[%emt 0:00:01]} 19. Ne5 {[%emt 0:00:18]} Qd6 {[%emt 0:00:14]} 20. h5 {[%emt 0:01:34]} Nxh5 {[%emt 0:01:39]} 21. Rxh5 {[%emt 0:00:07]} Rfe8 {[%emt 0:00:46]} 22. Nc4 {[%emt 0:00:39]} Qf4 {[%emt 0:00:10]} 23. g3 {[%emt 0:00:19]} Qc7 {[%emt 0:00:25]} 24. Rh4 {[%emt 0:00:29]} b5 {[%emt 0:00:03]} 25. Nd2 {[%emt 0:00:07]} a5 {[%emt 0:00:09]} 26. Kg2 {[%emt 0:00:38]} h5 {[%emt 0:00:13]} 27. Reh1 {[%emt 0:00:52]} Ra6 {[%emt 0:00:17]} 28. Rf4 {[%emt 0:00:55]} Qd6 {[%emt 0:00:49]} 29. Qf3 {[%emt 0:00:25]} Re7 {[%emt 0:00:26]} 30. g4 {[%emt 0:00:18]} hxg4 {[%emt 0:00:26]} 31. Qxg4 {[%emt 0:00:22]} Qe5 {[%emt 0:00:29]} 32. Nf3 {[%emt 0:00:22]} f5 {[%emt 0:01:26]} 33. exf5 {[%emt 0:00:24]} Qxd5 {[%emt 0:00:17]} 34. f6 {[%emt 0:00:08]} 1-0

[Event "Rapid Shavuot-A 2023"]
[Site "Ramat Gan"]
[Date "2023.05.25"]
[Round "6.18"]
[White "Bodenshtein, Yair"]
[Black "Kinberg, Ofer"]
[Result "1-0"]
[ECO "C68"]
[WhiteElo "1846"]
[BlackElo "1918"]
[Annotator "NA RC"]
[PlyCount "85"]
[EventDate "2023.05.19"]
[EventType "swiss"]
[EventCountry "ISR"]
[SourceTitle "playchess.com"]
[Source "ChessBase"]
[SourceQuality "1"]
[TimeControl "900+5"]

1. e4 {[%emt 0:00:01]} e5 {[%emt 0:00:01]} 2. Nf3 {[%emt 0:00:01]} Nc6 {[%emt 0:00:01]} 3. Bb5 {[%emt 0:00:01]} a6 {[%emt 0:00:01]} 4. Bxc6 {[%emt 0:00:01]} dxc6 {[%emt 0:00:01]} 5. O-O {[%emt 0:00:03]} Bg4 {[%emt 0:00:02]} 6. h3 {[%emt 0:00:01]} h5 {[%emt 0:00:03]} 7. d3 {[%emt 0:00:07]} Qf6 {[%emt 0:00:03]} 8. Be3 {[%emt 0:00:02]} Bxf3 {[%emt 0:00:24]} 9. Qxf3 {[%emt 0:00:02]} Qxf3 {[%emt 0:00:02]} 10. gxf3 {[%emt 0:00:01]} Bd6 {[%emt 0:00:12]} 11. Nd2 {[%emt 0:00:04]} Ne7 {[%emt 0:00:11]} 12. Rfb1 {[%emt 0:00:06]} f6 {[%emt 0:00:14]} 13. b4 {[%emt 0:00:21]} g5 {[%emt 0:00:03]} 14. Kf1 {[%emt 0:00:15]} Ng6 {[%emt 0:00:21]} 15. Ke2 {[%emt 0:00:07]} Nf4+ {[%emt 0:01:32]} 16. Bxf4 gxf4 {[%emt 0:00:01]} 17. c4 {[%emt 0:01:30]} b5 {[%emt 0:02:21]} 18. c5 {[%emt 0:00:12]} Be7 {[%emt 0:00:07]} 19. a4 {[%emt 0:00:23]} Kd7 {[%emt 0:02:18]} 20. Nb3 {[%emt 0:01:45]} Rhg8 {[%emt 0:00:41]} 21. axb5 {[%emt 0:00:13]} axb5 {[%emt 0:00:43]} 22. Rxa8 {[%emt 0:00:22]} Rxa8 {[%emt 0:00:01]} 23. Ra1 {[%emt 0:00:19]} Re8 {[%emt 0:06:59]} 24. d4 {[%emt 0:00:31]} f5 {[%emt 0:00:25]} 25. dxe5 {[%emt 0:01:01]} Bg5 {[%emt 0:00:16]} 26. Rg1 {[%emt 0:00:38]} Bh4 {[%emt 0:00:06]} 27. Rg7+ {[%emt 0:00:37]} Kc8 {[%emt 0:00:01]} 28. Nd4 {[%emt 0:01:39]} Rxe5 {[%emt 0:00:00]} 29. Nxc6 {[%emt 0:00:55]} Re8 {[%emt 0:00:01]} 30. e5 {[%emt 0:01:31]} Bf6 {[%emt 0:00:02]} 31. Rf7 {[%emt 0:01:01]} Bxe5 {[%emt 0:00:04]} 32. Kd3 {[%emt 0:01:29]} Kb7 {[%emt 0:00:01]} 33. Na5+ {[%emt 0:00:17]} Kc8 {[%emt 0:00:12]} 34. Rxf5 {[%emt 0:00:02]} h4 {[%emt 0:00:07]} 35. Nc6 {[%emt 0:00:22]} Bb2 {[%emt 0:00:08]} 36. Rxf4 {[%emt 0:00:20]} Kd7 {[%emt 0:00:09]} 37. Nd4 {[%emt 0:00:23]} c6 {[%emt 0:00:07]} 38. Rf7+ {[%emt 0:00:17]} Kc8 {[%emt 0:00:01]} 39. Nxc6 {[%emt 0:00:09]} Re1 {[%emt 0:00:01]} 40. Na7+ {[%emt 0:00:21]} Kb8 {[%emt 0:00:01]} 41. Nxb5 {[%emt 0:00:05]} Rh1 {[%emt 0:00:02]} 42. c6 {[%emt 0:00:04]} Be5 {[%emt 0:00:01]} 43. Rf8# {[%emt 0:00:25]} 1-0